Cogmind - Beta 17 @@@ ROGUE MODE // 2026.06.29 @ 12:39:47 Player: Calasmeer Result: Destroyed by HF-O52(R) with Subdweller Machine Gun Performance ------------- Evolutions (0) 0 Regions Visited (2) 400 Robots Destroyed (30) 150 Value Destroyed (581) 581 Prototype IDs (0) 0 Alien Tech Used (0) 0 Bonus (0) 0 TOTAL SCORE: 1131 Bonus ------- None Cogmind --------- Core Integrity 0/250 Matter 276/300 Energy 190/200 System Corruption 0% Temperature Cool (0) Movement Core (200) Ox3 Location -10/Subcaves Parts ------- > --- POWER (1) -------- Subdweller Power Source > --- PROPULSION (2) --- (None) > --- UTILITY (2) ------ Small Storage Unit > --- WEAPON (2) ------- Medium Laser > --- INVENTORY (8) ---- Light Ion Engine Compact Wheel Large Matter Pod (150) Improved Terrain Scanner Light Armor Plating Medium Laser Subdweller Laser Mining Claw Peak State ------------ > --- POWER ------------ Light Ion Engine > --- PROPULSION ------- Wheel Wheel > --- UTILITY ---------- Small Storage Unit Improved Terrain Scanner > --- WEAPON ----------- Medium Laser Medium Laser > --- INVENTORY -------- Light Ion Engine Light Treads Light Treads EM Pulse Gun [Rating: 9] Favorites ----------- Power Light Ion Engine Engine Light Ion Engine Propulsion Light Treads Treads Light Treads Wheel Wheel Utility Small Storage Unit Device Improved Terrain Scanner Storage Small Storage Unit Processor Signal Interpreter Protection Light Armor Plating Weapon Medium Laser Energy Gun Medium Laser Ballistic Cannon Light Cannon Slashing Weapon Mining Claw Build | -11 -10 -10 ------- Run | Yrd Mat Sub Slots Evolved . | . . . Power . | . . . Propulsion . | . . . Utility . | . . . Weapon . | . . . Parts Attached 21 | 7 13 1 Power 6 | 1 4 1 Engine 6 | 1 4 1 Core . | . . . Reactor . | . . . Propulsion 6 | 2 4 . Treads 4 | . 4 . Leg . | . . . Wheel 2 | 2 . . Hover . | . . . Flight . | . . . Utility 4 | 2 2 . Device 1 | 1 . . Storage 1 | 1 . . Processor 1 | . 1 . Hackware . | . . . Protection 1 | . 1 . Artifact . | . . . Weapon 5 | 2 3 . Energy Gun 3 | 2 1 . Energy Cannon . | . . . Ballistic Gun . | . . . Ballistic Cannon 1 | . 1 . Launcher . | . . . Special Weapon . | . . . Impact Weapon . | . . . Slashing Weapon 1 | . 1 . Piercing Weapon . | . . . Special Melee Weapon . | . . . Unidentified Prototypes . | . . . Parts Lost 7 | . 1 6 Power 2 | . 1 1 Propulsion 3 | . . 3 Utility 1 | . . 1 Weapon 1 | . . 1 Highest Loss Streak 4 | . 1 4 To Critical Strikes . | . . . Average Backups 7 | 3 7 8 Power 1 | 1 1 1 Propulsion 1 | 1 1 1 Utility 2 | . 2 3 Weapon 2 | . 2 2 Tool/Special . | . . . Unused Backups 9 | . 5 4 Power . | . . . Propulsion 1 | . . 1 Utility 2 | . 1 1 Weapon 6 | . 4 2 Tool/Special . | . . . Average Slot Usage (%) 98 | . 99 93 Engine 13 | . 13 12 Treads 24 | . 24 24 Wheel 3 | . 3 . Storage 13 | . 13 14 Processor 13 | . 13 12 Energy Gun 23 | . 25 14 Ballistic Cannon 3 | . 2 13 Peak Build Rating 9 | 9 9 9 Average Rating 7 | 6 7 8 On Entrance 5 | . 9 8 Avg Prop Armor Cover (%) . | . . . Naked Turns . | . . . Heaviest Build 15 | 13 13 15 Greatest Support 40 | 20 40 40 Greatest Overweight (x) 1 | . 1 . Average Overweight (x) . | . . . Largest Inventory Capacity 8 | 8 8 8 Average Capacity 7 | 6 7 8 Most Carried 8 | 5 8 8 Average Carried 7 | 3 7 7 Final Capacity 8 | 8 8 8 Final Carried 8 | 4 8 8 Class Distribution -------------------- 100% | Mutant Dominant Class ---------------- Mutant | -10/Materials Mutant | -10/Subcaves Resources | -11 -10 -10 ----------- Run | Yrd Mat Sub Matter Collected 778 | 260 440 78 Remotely . | . . . Salvage Created 927 | 101 739 87 Parts 59 | 5 47 7 Haulers Intercepted . | . . . Recyclers Shooed 6 | 1 5 . Parts Field Recycled . | . . . Retrieved Matter . | . . . Parts Self-Destructed 2 | . . 2 Prevented . | . . . Parts Restored . | . . . Kills | -11 -10 -10 ------- Run | Yrd Mat Sub Combat Hostiles Destroyed 20 | . 17 3 Guns 14 | . 13 1 Cannons 3 | . 1 2 Classes Destroyed 8 | 2 5 1 Worker 1 | . 1 . Builder 1 | . 1 . Tunneler 2 | 2 . . Recycler 4 | 1 3 . Watcher 2 | . 2 . Swarmer 9 | . 9 . Grunt 8 | . 8 . Subdweller 3 | . . 3 Best Kill Streak 6 | 2 6 2 Combat Bots Only 3 | . 3 2 Max Kills in Single Turn 1 | 1 1 1 Gunslinging . | . . . Exploded . | . . . Melee . | . . . Uniques/NPCs Destroyed . | . . . Combat | -11 -10 -10 -------- Run | Yrd Mat Sub Hostile Shots Fired 112 | . 85 27 Missed 23 | . 19 4 Hits 89 | . 66 23 Projectile 89 | . 66 23 Critical Strikes 1 | . 1 . Damage Taken 1182 | . 674 508 Core 254 | . 166 88 Absorbed by Shields . | . . . Core Remaining (%) 100 | 100 . . Volleys Fired 106 | 15 74 17 Largest 2 | 2 2 2 Hottest 100 | 100 100 80 Shots Fired 199 | 18 148 33 Gun 176 | 18 141 17 Cannon 23 | . 7 16 Launcher . | . . . Special . | . . . Kinetic 23 | . 7 16 Thermal 176 | 18 141 17 Explosive . | . . . Electromagnetic . | . . . Robot Hit Streak 16 | 4 9 16 Robot Miss Streak 4 | 3 4 2 Penetration Max . | . . . Secondary Targets 1 | . 1 . Max Gunslinging Chain 1 | . 1 . Shots Hit Robots 126 | 7 90 29 Core Hits 44 | 4 33 7 Critical Kills . | . . . Critical Parts Destroyed . | . . . Critical Strikes 14 | . 12 2 Burn 14 | . 12 2 Melee Attacks 12 | . 12 . Impact . | . . . Slashing 12 | . 12 . Piercing . | . . . Sneak Attacks . | . . . Combat Hostiles . | . . . Follow-up Attacks . | . . . Damage Inflicted 1652 | 86 1217 349 Guns 1351 | 86 1117 148 Cannons 301 | . 100 201 Explosions . | . . . Melee . | . . . Ramming . | . . . Kinetic 301 | . 100 201 Thermal 1351 | 86 1117 148 Explosive . | . . . Electromagnetic . | . . . Impact . | . . . Slashing . | . . . Piercing . | . . . Highest Corruption . | . . . Average Corruption . | . . . Corruption Purged . | . . . Corruption Blocked . | . . . Overload Shots . | . . . Overflow Damage 7 | . 7 . Projectiles 7 | . 7 . Explosions . | . . . Melee . | . . . Knockbacks 6 | . 2 4 Impact . | . . . Kinetic 6 | . 2 4 Secondary . | . . . Self-Inflicted Damage . | . . . Shots . | . . . Rammed . | . . . Targets Rammed . | . . . Kicked . | . . . Crushed . | . . . Highest Temperature 348 | 72 348 . Average Temperature 104 | 39 106 . Received Heat Transfer 363 | . 249 114 Effects 4 | . 4 . Energy Bleed 2 | . 2 . Interference 2 | . 2 . Siege Activations . | . . . Martial Activations . | . . . Shielding Activations . | . . . Robots Disrupted . | . . . Combat Hostiles . | . . . Robots Corrupted . | . . . Combat Hostiles . | . . . Parts Fried . | . . . Impact Corruptions . | . . . Robots Melted 3 | . 3 . Combat Hostiles 3 | . 3 . Parts Melted 12 | 1 10 1 Heat Transferred 4995 | 259 4144 592 Parts Sabotaged . | . . . Parts Stolen . | . . . Parts Stripped . | . . . Power Chain Reactions . | . . . Alert | -11 -10 -10 ------- Run | Yrd Mat Sub Maximum Alert Level . | . . . Low Security (%) 100 | 100 100 . Level 1 . | . . . Level 2 . | . . . Level 3 . | . . . Level 4 . | . . . Level 5 . | . . . High Security . | . . . Max Security . | . . . Peak Influence 110 | 5 110 . Initial . | . . . Average 41 | 1 44 . Influence Increases 550 | 15 535 . Destroy 0b10 Robot/C 340 | . 340 . Destroy 0b10 Robot/NC 50 | 15 35 . Destroy Leader 74 | . 74 . Successful Hack 22 | . 22 . Disable Machine 15 | . 15 . Destroy Structure 4 | . 4 . Lose Combat Pursuer 45 | . 45 . Influence Decreases 550 | 15 457 78 Entered New Map 38 | . . 38 Time Decay 427 | 15 372 40 Lost Part 10 | . 10 . Purge Threat 75 | . 75 . Squads Dispatched 4 | . 4 . Investigation 2 | . 2 . Extermination . | . . . Reinforcement 2 | . 2 . Assault . | . . . Garrison . | . . . Intercept . | . . . Searches Triggered . | . . . Construction Impeded . | . . . Haulers Reinforced . | . . . Active Scanning Responses . | . . . Cargo Convoy Interrupts . | . . . Stealth | -11 -10 -10 --------- Run | Yrd Mat Sub Distress Signals . | . . . Communications Jammed . | . . . Distress Signals . | . . . Times Spotted 34 | . 30 4 Peak Tracking Total 4 | . 4 2 Tactical Retreats 3 | . 3 . Traps | -11 -10 -10 ------- Run | Yrd Mat Sub Traps Triggered 2 | . 2 . Indirectly . | . . . Trap Hack Attempts . | . . . Triggered . | . . . Disarmed . | . . . Reprogrammed . | . . . Reused . | . . . Traps Extracted . | . . . Installed . | . . . Triggered . | . . . Machines | -11 -10 -10 ---------- Run | Yrd Mat Sub Machines Disabled 1 | . 1 . Max in Single Turn 1 | . 1 . Machines Repaired . | . . . Machines Dismantled . | . . . Machines Sabotaged . | . . . Overloaded Fab Kills . | . . . Hacking | -11 -10 -10 --------- Run | Yrd Mat Sub Machines Accessed 6 | . 6 . Terminals 4 | . 4 . Fabricators . | . . . Repair Stations . | . . . Recycling Units 2 | . 2 . Scanalyzers . | . . . Garrison Access . | . . . Total Hacks 17 | . 17 . Successful 10 | . 10 . Failed 7 | . 7 . Catastrophic 2 | . 2 . Database Lockouts . | . . . Manual 12 | . 12 . Terminals 14 | . 14 . Fabricators . | . . . Repair Stations . | . . . Recycling Units 3 | . 3 . Scanalyzers . | . . . Garrison Access . | . . . Terminal Hacks 4 | . 4 . Robot Analysis 2 | . 2 . Unreport Threat 1 | . 1 . Recall Investigation 1 | . 1 . Fabricator Hacks . | . . . Repair Station Hacks . | . . . Recycling Unit Hacks 3 | . 3 . Retrieve Matter 2 | . 2 . Retrieve Components 1 | . 1 . Scanalyzer . | . . . Garrison Access Hacks . | . . . Unauthorized Hacks 3 | . 3 . Terminals 3 | . 3 . Botnet 3 | . 3 . Fabricators . | . . . Repair Stations . | . . . Recycling Units . | . . . Scanalyzers . | . . . Garrison Access . | . . . Data Cores Recovered . | . . . Used . | . . . Hacking Detections 6 | . 6 . Full Trace Events . | . . . Feedback Events . | . . . Feedback Blocked . | . . . Robot Schematics Acquired . | . . . Robots Built . | . . . Authchips . | . . . Time . | . . . Total Robot Build Rating . | . . . Part Schematics Acquired . | . . . Parts Built . | . . . Authchips . | . . . Time . | . . . Total Part Build Rating . | . . . Part Studies Acquired . | . . . Parts Repaired . | . . . Time . | . . . Parts Recycled . | . . . Recycled Matter . | . . . Retrieved Matter . | . . . Retrieved Components 3 | . 3 . Parts Scanalyzed . | . . . Part Schematics Acquired . | . . . Parts Damaged . | . . . Bothacking | -11 -10 -10 ------------ Run | Yrd Mat Sub Used RIF Installer . | . . . Robots Hacked . | . . . Non-combat . | . . . Combat . | . . . Robot Hacks Applied . | . . . Relay Couplers Released . | . . . Fabnet Peak Effective % . | . . . Robots Rewired . | . . . Allies Hacked . | . . . Hacks Repelled . | . . . Allies | -11 -10 -10 -------- Run | Yrd Mat Sub Total Allies . | . . . Largest Group . | . . . Highest-Rated Group . | . . . Highest-Rated Ally . | . . . Total Orders . | . . . Ally Attacks . | . . . Total Damage . | . . . Kills . | . . . Allies Corrupted . | . . . Allies Melted . | . . . Intel | -11 -10 -10 ------- Run | Yrd Mat Sub Active Infowar (turns) 133 | 89 44 . Terrain 133 | 89 44 . Robot Analysis Total 2 | . 2 . Derelict Logs Recovered . | . . . Drone Launches . | . . . Drone Recoveries . | . . . Exploration | -11 -10 -10 ------------- Run | Yrd Mat Sub Turns Passed 1799 | 118 1467 214 Spaces Moved 936 | 86 763 87 Core 3 | 3 . . Treads 645 | . 558 87 Legs . | . . . Wheels 288 | 83 205 . Hover . | . . . Flight . | . . . Fastest Speed 50 | 50 80 160 Average Speed 135 | 78 138 160 Slowest Speed 160 | 80 160 160 Overloaded Moves . | . . . Propulsion Burnouts . | . . . Robots Hopped . | . . . Potential Cave-ins . | . . . Cave-ins Triggered . | . . . Exploration Rate (%) 35 | 4 96 7 Regions Visited 2 Branch Regions 1 Pre-discovered Areas . | . . . Known Exits Taken 1 | . 1 . Unknown Exits Taken 1 | 1 . . Scrap Searched . | . . . Spaces Dug . | . . . Terrain Destroyed . | . . . Melee . | . . . Projectile . | . . . AOE . | . . . Terrain Rammed . | . . . Walls Destroyed . | . . . Machines Disabled . | . . . Actions | -11 -10 -10 --------- Run | Yrd Mat Sub Total 1251 | 115 1004 132 Wait 130 | . 108 22 Move 934 | 85 762 87 Hop . | . . . Pick Up 23 | 7 13 3 Fast Attach 8 | 5 3 . Attach 6 | 2 2 2 Detach 2 | . 2 . Swap 13 | . 13 . Drop 17 | 1 15 1 Fire 106 | 15 74 17 Melee 12 | . 12 . Ram . | . . . Kick . | . . . Crush . | . . . Escape Stasis . | . . . Rewire . | . . . Trap . | . . . Miscellaneous . | . . . Route ------- -11/Scrapyard -10/Materials (discovered 6 exits: *Mat x3 / *Min x2 / *Sub) -10/Subcaves (discovered 1 exit: *Mat) History --------- Turn | Location | Event 11 | -11/Scrapyard | Discovered new exit (range 14) 119 | -11/Scrapyard | Entered Materials 133 | -10/Materials | Discovered new exit (range 3) 194 | -10/Materials | Identified exit to Mines 311 | -10/Materials | Build established: Mutant 325 | -10/Materials | Discovered exit to Mines (range 12) 1080 | -10/Materials | Discovered new exit (range 4) 1099 | -10/Materials | Identified exit to Materials 1269 | -10/Materials | Discovered exit to Materials (range 4) 1271 | -10/Materials | Core integrity fell below 50% 1485 | -10/Materials | Discovered exit to Materials (range 11) 1580 | -10/Materials | Discovered new exit (range 3) 1583 | -10/Materials | Identified exit to Subcaves 1586 | -10/Materials | Entered Subcaves 1722 | -10/Subcaves | Discovered new exit (range 5) 1727 | -10/Subcaves | Identified exit to Materials 1793 | -10/Subcaves | Core integrity fell below 20% 1800 | -10/Subcaves | Destroyed by HF-O52(R) with Subdweller Machine Gun Last Messages --------------- 01701_ Subatomizers dissect the Sub. Laser. 01703_ Acquired Lgt. Ion Engine. 01705_ Acquired 4 matter. 01707_ Acquired 44 matter. 01709_ Acquired 3 matter. 01714_ Subatomizers dissect the Sub. Laser. 01714_ Acquired Sub. Laser. 01722_ Acquired 27 matter. 01722_ EXIT=FOUND 01727_ EXIT=IDENTIFIED: MATERIALS 01779_ 1E-RQT(R) suffers critical hit (Burn). 01782_ Lgt. Treads destroyed. 01782_ 1E-RQT(R) suffers critical hit (Burn). 01784_ Lgt. Treads destroyed. 01788_ Sub. Beam Cannon melted. 01788_ 1E-RQT(R) destroyed. 01788_ Signal Interpreter destroyed. 01793_ Subatomizers dissect the Sub. Monowheel. 01794_ HF-O52(R) knocked back. 01798_ Lgt. Cannon destroyed. Map ----- +----------------------------------------------------+ | ????????## #???????????????????????????? | | ????????# ## ##?????????????????????????? | | ???????# ### ## ### ##????????????????????????? | | ???????# ?## ### ##???????????????????????? | | ???????####?# ####### ##??????????????????????? | | ????????????# #?????# ##??????????#??????????? | | ????????????# #????## # ##??????? #??????????? | | ????????????## ##????# # # ####### #???????????? | | ????????????# ##?????#### # # # ! ##??????????? | | ????????????### #????????## & && #??????????? | | ??????????????###???????### &#### #??????????? | | ???????????????????????## ### ##???? ##?????????? | | ???????????????????????# ## ##??? #?????????? | | ???????????????????????# " #### #?????????? | | ???????????????????????## ""& #?????????? | | ????????????????????????# "### " #?????????? | | ????????????????????????## "#?## "% ####?????????? | | ?????????????????????????# "### <"###????????????? | | ??????????????????????#### ## "#??????????????? | | ?????????????????????## " "## "##?????????????? | | ?????????????????????# """ "" #?????????????? | | ?????????????????????## " """" % #????????????? | | ??????????????????????## % """" ###????????????? | | ???????????????????????#! ! ######??????????????? | | ??????????????##########%= #???????????????????? | | ??????# ????## ## #@ % #???????????????????? | | ???????# # """ ## """#???????????????????? | | ???????# # R"""#???????????????????? | | ???????## ### # #???????????????????? | | ????????## ## ?### #?????????????????? | | ????????????## ???# ##### #????????????????? | | ?????????????# ??# ####???? #????????????????? | | ????????????? ??###???????? ????????????????? | | ???????????? ??????????????????????????????? | | ???????????? "??????????????????????????????? | | ??????????? #?????????????????????????????? | | ?????????? #?????????????????????????????? | | ?????????? #?????????????????????????????? | | ????????? "?????????????????????????????? | | ????????? "?????????????????????????????? | | ????????? "?????????????????????????????? | | ??????????? ### "?????????????????????????????? | | ???????????????# ???????????????????????????????? | | ?????????????????????????????????????????????????? | | ?????????????????????????????????????????????????? | | ?????????????????????????????????????????????????? | | ?????????????????????????????????????????????????? | | ?????????????????????????????????????????????????? | | ?????????????????????????????????????????????????? | | ?????????????????????????????????????????????????? | +----------------------------------------------------+ Best States ------------- Heat Dissipation 25 Energy Generation 15 Energy Capacity 200 Matter Stores 300 Matter Capacity 300 Sight Range 16 Terrain Scan Range 16 Terrain Scan Density 10 Armor Coverage 150 Evasion (%) 44 Recoil Reduction 2 Item Schematics ----------------- None Robot Schematics ------------------ None Fabricated ------------ Nothing Repaired ---------- Nothing Studied --------- None Alien Tech Used ----------------- None Achievements -------------- GoHome() Challenges ------------ None Game ------ Seed RapidMetaClaw Manual? 0 Play Time 00:21:14 Cumulative 47.7 hours Start 2026.06.29 @ 12:19:56 End 2026.06.29 @ 12:39:47 Sessions 1 Manual Loads 0 Difficulty Rogue Special Mode None Game No. 42 Rogue 41 Adventurer 0 Explorer 1 Win Type - Total 1 Types 1/0/0/0/0/0/0/0/0/0 Lore% 44 Gallery% 38 Achievement% 24 Wizard Run 0 Options --------- Layout 1 ASCII 0 Keyboard 0 Movement Numpad Keybinds 0 Fullscreen 1 Font 32/SmallcapsGlow Map View 50x35 Zoom Use 0% Tactical HUD 1 Map Filters NONE Filters NONE Steam 1 RUN: a0ac09f8-52ea-4976-b32b-da9da0b5c88e